[Event "*** Titled Tuesday Blitz"]
[Site "Chess.com"]
[Date "2021.02.16"]
[Round "11"]
[White "zmeeed67"]
[Black "Balla_Tamas"]
[Result "0-1"]
[WhiteElo "2330"]
[BlackElo "2458"]
[TimeControl "180+1"]
[EndTime "12:09:24 PST"]
[Termination "Balla_Tamas won by resignation"]

1. e4 {[%clk 0:03:00.9]} 1... g6 {[%clk 0:02:57.1]} 2. g3 {[%clk 0:02:59.2]}
2... Bg7 {[%clk 0:02:57.1]} 3. Bg2 {[%clk 0:02:59.4]} 3... c5 {[%clk 0:02:57.7]}
4. Ne2 {[%clk 0:02:59.2]} 4... Nc6 {[%clk 0:02:58.1]} 5. O-O {[%clk 0:02:58.1]}
5... d6 {[%clk 0:02:57.8]} 6. Nbc3 {[%clk 0:02:58]} 6... a6 {[%clk 0:02:53.2]}
7. a3 {[%clk 0:02:58]} 7... e6 {[%clk 0:02:51.1]} 8. Rb1 {[%clk 0:02:57.7]} 8...
Nge7 {[%clk 0:02:51.2]} 9. b4 {[%clk 0:02:57.5]} 9... b5 {[%clk 0:02:51.3]} 10.
d3 {[%clk 0:02:56.2]} 10... Bb7 {[%clk 0:02:50.2]} 11. f4 {[%clk 0:02:44.5]}
11... O-O {[%clk 0:02:48.8]} 12. h3 {[%clk 0:02:43.8]} 12... Qc7 {[%clk
0:02:47.6]} 13. Kh2 {[%clk 0:02:43.2]} 13... cxb4 {[%clk 0:02:47.2]} 14. axb4
{[%clk 0:02:42.7]} 14... Nxb4 {[%clk 0:02:46.6]} 15. Rxb4 {[%clk 0:02:38.9]}
15... Bxc3 {[%clk 0:02:45.4]} 16. Nxc3 {[%clk 0:02:38.7]} 16... Qxc3 {[%clk
0:02:45.7]} 17. Rb3 {[%clk 0:02:33]} 17... Qc7 {[%clk 0:02:44.4]} 18. Bb2 {[%clk
0:02:23.5]} 18... f6 {[%clk 0:02:44.2]} 19. f5 {[%clk 0:02:16.7]} 19... exf5
{[%clk 0:02:40.4]} 20. exf5 {[%clk 0:02:16.3]} 20... Bxg2 {[%clk 0:02:40]} 21.
Kxg2 {[%clk 0:02:13.4]} 21... Nxf5 {[%clk 0:02:36.6]} 22. Rxf5 {[%clk
0:01:59.5]} 22... gxf5 {[%clk 0:02:35.8]} 23. Bd4 {[%clk 0:01:45.3]} 23... Qc6+
{[%clk 0:02:34.5]} 24. Kh2 {[%clk 0:01:43.5]} 24... Qd5 {[%clk 0:02:34.2]} 25.
c3 {[%clk 0:01:41.1]} 25... Rae8 {[%clk 0:02:32.6]} 26. Rb2 {[%clk 0:01:40.2]}
26... Re5 {[%clk 0:02:29.1]} 27. Rf2 {[%clk 0:01:39.4]} 27... Rfe8 {[%clk
0:02:26.5]} 28. Qh5 {[%clk 0:01:38.1]} 28... Qf7 {[%clk 0:02:20.3]} 29. Qf3
{[%clk 0:01:33.5]} 29... a5 {[%clk 0:02:17]} 30. Bxe5 {[%clk 0:01:18.7]} 30...
fxe5 {[%clk 0:02:15.7]} 31. g4 {[%clk 0:01:08.7]} 31... f4 {[%clk 0:02:06.9]}
32. Qc6 {[%clk 0:01:07.8]} 32... a4 {[%clk 0:02:02.6]} 33. Qxb5 {[%clk 0:01:06]}
33... a3 {[%clk 0:02:02.6]} 34. Qa4 {[%clk 0:00:59.3]} 34... Rc8 {[%clk
0:01:47]} 35. Qxa3 {[%clk 0:00:56.8]} 35... Qd5 {[%clk 0:01:47.4]} 36. Qb2
{[%clk 0:00:47.3]} 36... Qxd3 {[%clk 0:01:40.8]} 37. Qb3+ {[%clk 0:00:37.2]}
37... Qc4 {[%clk 0:01:40]} 38. Qa3 {[%clk 0:00:33.5]} 38... Qxc3 {[%clk
0:01:37.6]} 39. Qxc3 {[%clk 0:00:26.5]} 39... Rxc3 {[%clk 0:01:36]} 40. Rd2
{[%clk 0:00:26.9]} 40... Rc6 {[%clk 0:01:35.8]} 41. Kg2 {[%clk 0:00:26.5]} 41...
Kf7 {[%clk 0:01:35.9]} 42. Kf3 {[%clk 0:00:26.5]} 42... Ke6 {[%clk 0:01:35.3]}
43. g5 {[%clk 0:00:25.6]} 43... Kf5 {[%clk 0:01:33.8]} 44. h4 {[%clk 0:00:25.4]}
44... e4+ {[%clk 0:01:33.3]} 45. Ke2 {[%clk 0:00:25.7]} 45... Kg4 {[%clk
0:01:33.5]} 46. Rd4 {[%clk 0:00:24.2]} 46... e3 {[%clk 0:01:31.9]} 47. g6 {[%clk
0:00:19.4]} 47... hxg6 {[%clk 0:01:30.9]} 0-1

[Event "*** Titled Tuesday Blitz"]
[Site "Chess.com"]
[Date "2021.02.16"]
[Round "11"]
[White "Kapibara_Warri0r"]
[Black "andrzej"]
[Result "0-1"]
[WhiteElo "2173"]
[BlackElo "2297"]
[TimeControl "180+1"]
[EndTime "12:09:29 PST"]
[Termination "andrzej won by resignation"]

1. d4 {[%clk 0:03:00.9]} 1... Nf6 {[%clk 0:02:59.4]} 2. c4 {[%clk 0:03:00.8]}
2... c5 {[%clk 0:02:59.8]} 3. d5 {[%clk 0:02:59.6]} 3... b5 {[%clk 0:03:00.3]}
4. cxb5 {[%clk 0:02:53.4]} 4... a6 {[%clk 0:03:00.6]} 5. Nc3 {[%clk 0:02:50.6]}
5... axb5 {[%clk 0:02:53.4]} 6. Nxb5 {[%clk 0:02:48.4]} 6... d6 {[%clk
0:02:53.1]} 7. e3 {[%clk 0:02:46.3]} 7... g6 {[%clk 0:02:51]} 8. a4 {[%clk
0:02:44.5]} 8... Bg7 {[%clk 0:02:51]} 9. Bc4 {[%clk 0:02:43]} 9... O-O {[%clk
0:02:50.4]} 10. Ne2 {[%clk 0:02:43.5]} 10... Na6 {[%clk 0:02:42.8]} 11. O-O
{[%clk 0:02:43]} 11... Nc7 {[%clk 0:02:42.8]} 12. Nec3 {[%clk 0:02:38.2]} 12...
Ba6 {[%clk 0:02:42.5]} 13. Qd3 {[%clk 0:02:29.2]} 13... Nd7 {[%clk 0:02:41.8]}
14. Nxc7 {[%clk 0:02:14.2]} 14... Bxc4 {[%clk 0:02:40.9]} 15. Qxc4 {[%clk
0:02:15.1]} 15... Qxc7 {[%clk 0:02:41.1]} 16. Ra2 {[%clk 0:02:05.3]} 16... Ne5
{[%clk 0:02:34.1]} 17. Qe2 {[%clk 0:02:02.2]} 17... c4 {[%clk 0:02:32.1]} 18.
Bd2 {[%clk 0:01:58.4]} 18... Rfb8 {[%clk 0:02:19.6]} 19. Rfa1 {[%clk 0:01:51.6]}
19... Nd3 {[%clk 0:02:14.7]} 20. Nb5 {[%clk 0:01:48.8]} 20... Qb6 {[%clk
0:01:59.1]} 21. Bc3 {[%clk 0:01:46.9]} 21... Bxc3 {[%clk 0:01:53.2]} 22. bxc3
{[%clk 0:01:42.1]} 22... Qc5 {[%clk 0:01:47.7]} 23. h3 {[%clk 0:01:35]} 23... h5
{[%clk 0:01:47.2]} 24. g4 {[%clk 0:01:09.7]} 24... hxg4 {[%clk 0:01:45.8]} 25.
Qxg4 {[%clk 0:01:10.6]} 25... Ne5 {[%clk 0:01:40.7]} 26. Qf4 {[%clk 0:01:03.4]}
26... Kg7 {[%clk 0:01:36]} 27. Kf1 {[%clk 0:00:47.5]} 27... Rh8 {[%clk
0:01:28.6]} 28. Qd4 {[%clk 0:00:39.8]} 28... Qc8 {[%clk 0:01:05.9]} 29. Ke2
{[%clk 0:00:15.9]} 29... Qxh3 {[%clk 0:01:01.6]} 30. Nc7 {[%clk 0:00:15.4]}
30... Qf3+ {[%clk 0:00:55.6]} 31. Kd2 {[%clk 0:00:15.1]} 31... Qxf2+ {[%clk
0:00:54.5]} 32. Kc1 {[%clk 0:00:15.2]} 32... Rh1+ {[%clk 0:00:53]} 0-1

[Event "*** Titled Tuesday Blitz"]
[Site "Chess.com"]
[Date "2021.02.16"]
[Round "11"]
[White "Zq1"]
[Black "Ladislav1969"]
[Result "1-0"]
[WhiteElo "2510"]
[BlackElo "2337"]
[TimeControl "180+1"]
[EndTime "12:09:30 PST"]
[Termination "Zq1 won on time"]

1. d4 {[%clk 0:03:00.9]} 1... Nf6 {[%clk 0:03:00.2]} 2. c4 {[%clk 0:03:00.8]}
2... g6 {[%clk 0:03:00.8]} 3. Nc3 {[%clk 0:03:00]} 3... d5 {[%clk 0:03:01.5]} 4.
Nf3 {[%clk 0:02:58.7]} 4... Bg7 {[%clk 0:03:01.1]} 5. cxd5 {[%clk 0:02:58.9]}
5... Nxd5 {[%clk 0:03:01]} 6. Bd2 {[%clk 0:02:59.5]} 6... c5 {[%clk 0:02:59.5]}
7. Rc1 {[%clk 0:02:56.8]} 7... Nxc3 {[%clk 0:02:53.6]} 8. Bxc3 {[%clk
0:02:56.7]} 8... cxd4 {[%clk 0:02:48.9]} 9. Nxd4 {[%clk 0:02:52.1]} 9... O-O
{[%clk 0:02:43.6]} 10. e3 {[%clk 0:02:51]} 10... Bd7 {[%clk 0:02:43.7]} 11. Be2
{[%clk 0:02:48.8]} 11... Nc6 {[%clk 0:02:43.8]} 12. Bf3 {[%clk 0:02:48.2]} 12...
Nxd4 {[%clk 0:02:40.5]} 13. Bxd4 {[%clk 0:02:47.2]} 13... Qa5+ {[%clk
0:02:38.6]} 14. Qd2 {[%clk 0:02:41.4]} 14... Qxd2+ {[%clk 0:02:18.1]} 15. Kxd2
{[%clk 0:02:40.6]} 15... Bxd4 {[%clk 0:02:11.7]} 16. exd4 {[%clk 0:02:39.8]}
16... Rab8 {[%clk 0:01:47.1]} 17. Rc7 {[%clk 0:02:36.9]} 17... Rfd8 {[%clk
0:01:41.1]} 18. b3 {[%clk 0:02:13.5]} 18... e5 {[%clk 0:01:03.6]} 19. Rxb7
{[%clk 0:02:02.3]} 19... Rxb7 {[%clk 0:00:54.5]} 20. Bxb7 {[%clk 0:02:01.1]}
20... Be6 {[%clk 0:00:51.7]} 21. Rc1 {[%clk 0:01:39.9]} 21... Rxd4+ {[%clk
0:00:51.3]} 22. Ke3 {[%clk 0:01:38.8]} 22... a5 {[%clk 0:00:46.6]} 23. Bc6
{[%clk 0:01:17.4]} 23... Kg7 {[%clk 0:00:32.9]} 24. Rc5 {[%clk 0:01:15.6]} 24...
f6 {[%clk 0:00:26.7]} 25. Rxa5 {[%clk 0:01:14.5]} 25... Rd1 {[%clk 0:00:25.4]}
26. Ra7+ {[%clk 0:01:12.5]} 26... Kh6 {[%clk 0:00:16.8]} 27. h4 {[%clk
0:01:09.6]} 27... Re1+ {[%clk 0:00:14.8]} 28. Kd2 {[%clk 0:01:08.7]} 28... Rf1
{[%clk 0:00:14.1]} 29. Ke2 {[%clk 0:01:07.7]} 29... Rb1 {[%clk 0:00:12.4]} 30.
g3 {[%clk 0:01:02.8]} 30... Bg4+ {[%clk 0:00:10]} 31. Bf3 {[%clk 0:00:57.7]}
31... Rb2+ {[%clk 0:00:03.3]} 32. Ke3 {[%clk 0:00:56.8]} 32... Bf5 {[%clk
0:00:03.3]} 33. g4 {[%clk 0:00:55]} 1-0

[Event "*** Titled Tuesday Blitz"]
[Site "Chess.com"]
[Date "2021.02.16"]
[Round "11"]
[White "Spalir"]
[Black "Bulldog167"]
[Result "1-0"]
[WhiteElo "2691"]
[BlackElo "2856"]
[TimeControl "180+1"]
[EndTime "12:09:31 PST"]
[Termination "Spalir won by resignation"]

1. e4 {[%clk 0:03:00.9]} 1... e6 {[%clk 0:02:59.8]} 2. d4 {[%clk 0:02:56.4]}
2... d5 {[%clk 0:03:00.4]} 3. Nc3 {[%clk 0:02:54.2]} 3... Bb4 {[%clk 0:02:59.9]}
4. e5 {[%clk 0:02:53.2]} 4... c5 {[%clk 0:03:00]} 5. a3 {[%clk 0:02:51.4]} 5...
Bxc3+ {[%clk 0:03:00.6]} 6. bxc3 {[%clk 0:02:52.3]} 6... Ne7 {[%clk 0:03:01.1]}
7. Qg4 {[%clk 0:02:51]} 7... Qc7 {[%clk 0:03:01]} 8. Qxg7 {[%clk 0:02:49.5]}
8... Rg8 {[%clk 0:03:01.3]} 9. Qxh7 {[%clk 0:02:49.9]} 9... cxd4 {[%clk
0:03:02.2]} 10. Ne2 {[%clk 0:02:48.5]} 10... Nbc6 {[%clk 0:03:02.7]} 11. f4
{[%clk 0:02:48]} 11... dxc3 {[%clk 0:03:03]} 12. Qd3 {[%clk 0:02:46.2]} 12... d4
{[%clk 0:03:03]} 13. h4 {[%clk 0:02:38.2]} 13... Bd7 {[%clk 0:02:58.5]} 14. h5
{[%clk 0:02:36.3]} 14... O-O-O {[%clk 0:02:59]} 15. h6 {[%clk 0:02:36.3]} 15...
Kb8 {[%clk 0:02:59.6]} 16. h7 {[%clk 0:02:34.7]} 16... Rh8 {[%clk 0:03:00.2]}
17. g4 {[%clk 0:02:28.8]} 17... Bc8 {[%clk 0:03:00.3]} 18. Rb1 {[%clk
0:02:20.2]} 18... b6 {[%clk 0:02:57.9]} 19. Bg2 {[%clk 0:02:18.1]} 19... Bb7
{[%clk 0:02:57.6]} 20. Kf2 {[%clk 0:02:15.2]} 20... Ng6 {[%clk 0:02:56.5]} 21.
Rh5 {[%clk 0:02:04.8]} 21... Nf8 {[%clk 0:02:50.2]} 22. Ng3 {[%clk 0:01:55.8]}
22... Nd7 {[%clk 0:02:49.6]} 23. Ne4 {[%clk 0:01:52.2]} 23... Ndxe5 {[%clk
0:02:47.4]} 24. fxe5 {[%clk 0:01:48.9]} 24... Nxe5 {[%clk 0:02:48.3]} 25. Qg3
{[%clk 0:01:28.2]} 25... f5 {[%clk 0:01:25]} 26. Bf4 {[%clk 0:01:22.6]} 26...
Nxg4+ {[%clk 0:01:24.8]} 27. Qxg4 {[%clk 0:01:22.4]} 27... fxg4 {[%clk
0:01:22.6]} 28. Bxc7+ {[%clk 0:01:22.4]} 28... Kxc7 {[%clk 0:01:23.5]} 29. Ng5
{[%clk 0:01:14.6]} 29... Bxg2 {[%clk 0:00:56.1]} 30. Kxg2 {[%clk 0:01:11.2]}
30... Rd7 {[%clk 0:00:41.7]} 31. Rf1 {[%clk 0:01:05.7]} 31... e5 {[%clk
0:00:37.7]} 32. Nf7 {[%clk 0:00:55.7]} 32... Rxh7 {[%clk 0:00:30.3]} 33. Rxh7
{[%clk 0:00:53.9]} 33... e4 {[%clk 0:00:31.2]} 34. Ng5 {[%clk 0:00:52.3]} 34...
Rxh7 {[%clk 0:00:29.5]} 35. Nxh7 {[%clk 0:00:53.2]} 35... d3 {[%clk 0:00:29]}
36. Nf6 {[%clk 0:00:45.6]} 36... Kc6 {[%clk 0:00:27.8]} 37. Nxe4 {[%clk
0:00:45.5]} 37... dxc2 {[%clk 0:00:27.4]} 38. Nxc3 {[%clk 0:00:44.6]} 1-0

[Event "*** Titled Tuesday Blitz"]
[Site "Chess.com"]
[Date "2021.02.16"]
[Round "11"]
[White "TeukkaSalama"]
[Black "PlotnikovPavel"]
[Result "0-1"]
[WhiteElo "2365"]
[BlackElo "2465"]
[TimeControl "180+1"]
[EndTime "12:09:31 PST"]
[Termination "PlotnikovPavel won by checkmate"]

1. d4 {[%clk 0:03:00.9]} 1... Nf6 {[%clk 0:02:59.3]} 2. Nf3 {[%clk 0:03:00.7]}
2... g6 {[%clk 0:02:59.3]} 3. Bg5 {[%clk 0:03:00.4]} 3... Bg7 {[%clk 0:02:59.5]}
4. Nbd2 {[%clk 0:03:01]} 4... O-O {[%clk 0:02:59.5]} 5. c3 {[%clk 0:03:01.5]}
5... d5 {[%clk 0:02:59.5]} 6. e3 {[%clk 0:02:59.9]} 6... Nbd7 {[%clk 0:02:59.8]}
7. Be2 {[%clk 0:02:59.1]} 7... c6 {[%clk 0:03:00.2]} 8. O-O {[%clk 0:02:58.7]}
8... Re8 {[%clk 0:02:57.2]} 9. h3 {[%clk 0:02:54.1]} 9... e5 {[%clk 0:02:56.8]}
10. a4 {[%clk 0:02:53.2]} 10... h6 {[%clk 0:02:52.3]} 11. Bh4 {[%clk 0:02:51.7]}
11... Qb6 {[%clk 0:02:49.7]} 12. b4 {[%clk 0:02:49.8]} 12... a5 {[%clk
0:02:49.1]} 13. b5 {[%clk 0:02:49.5]} 13... c5 {[%clk 0:02:48.5]} 14. dxe5
{[%clk 0:02:37]} 14... Nxe5 {[%clk 0:02:49.4]} 15. Nxe5 {[%clk 0:02:31.2]} 15...
Rxe5 {[%clk 0:02:50.3]} 16. c4 {[%clk 0:02:30.9]} 16... d4 {[%clk 0:02:45.8]}
17. Nf3 {[%clk 0:02:20.1]} 17... Re4 {[%clk 0:02:43.8]} 18. Bd3 {[%clk
0:02:16.5]} 18... Re8 {[%clk 0:02:41.4]} 19. exd4 {[%clk 0:02:16.3]} 19... cxd4
{[%clk 0:02:42.3]} 20. Qc2 {[%clk 0:02:04.1]} 20... Be6 {[%clk 0:02:37.5]} 21.
c5 {[%clk 0:02:01.1]} 21... Qd8 {[%clk 0:02:36]} 22. Rad1 {[%clk 0:01:56.4]}
22... Qd5 {[%clk 0:02:35.1]} 23. Bxf6 {[%clk 0:01:47.1]} 23... Bxf6 {[%clk
0:02:33.5]} 24. Be4 {[%clk 0:01:43.2]} 24... Qh5 {[%clk 0:02:31.8]} 25. Nxd4
{[%clk 0:01:37]} 25... Rad8 {[%clk 0:02:25.3]} 26. Nxe6 {[%clk 0:01:34.8]} 26...
Rxd1 {[%clk 0:02:23.3]} 27. Rxd1 {[%clk 0:01:35.7]} 27... Rxe6 {[%clk
0:02:22.5]} 28. Bxb7 {[%clk 0:01:31.3]} 28... Re2 {[%clk 0:02:21.2]} 29. Qd3
{[%clk 0:01:05.4]} 29... Bh4 {[%clk 0:02:17.7]} 30. Bf3 {[%clk 0:00:53.6]} 30...
Bxf2+ {[%clk 0:02:12.8]} 31. Kf1 {[%clk 0:00:46.2]} 31... Re1+ {[%clk
0:01:25.1]} 32. Rxe1 {[%clk 0:00:46.2]} 32... Qxc5 {[%clk 0:01:25.8]} 33. Rd1
{[%clk 0:00:35.7]} 33... Bg1 {[%clk 0:01:24.4]} 34. Qe2 {[%clk 0:00:34.7]} 34...
Bh2 {[%clk 0:01:23.2]} 35. Qf2 {[%clk 0:00:25.9]} 35... Qc4+ {[%clk 0:01:23.7]}
36. Be2 {[%clk 0:00:25.9]} 36... Qxa4 {[%clk 0:01:24.6]} 37. b6 {[%clk
0:00:25.4]} 37... Qc6 {[%clk 0:01:23.6]} 38. Rb1 {[%clk 0:00:21.3]} 38... Qb7
{[%clk 0:01:22.5]} 39. Qf3 {[%clk 0:00:20.3]} 39... Qc8 {[%clk 0:01:09]} 40. b7
{[%clk 0:00:19.3]} 40... Qc5 {[%clk 0:01:09.9]} 41. b8=Q+ {[%clk 0:00:17.4]}
41... Kg7 {[%clk 0:01:10.8]} 42. Qb2+ {[%clk 0:00:14.4]} 42... Kg8 {[%clk
0:01:09.5]} 43. Qbc3 {[%clk 0:00:13.8]} 43... Qg1# {[%clk 0:01:09]} 0-1

[Event "*** Titled Tuesday Blitz"]
[Site "Chess.com"]
[Date "2021.02.16"]
[Round "11"]
[White "Sergienko_Sergey"]
[Black "Walter_White_Poland"]
[Result "1/2-1/2"]
[WhiteElo "2431"]
[BlackElo "2356"]
[TimeControl "180+1"]
[EndTime "12:09:35 PST"]
[Termination "Game drawn by repetition"]

1. e4 {[%clk 0:02:58.7]} 1... e5 {[%clk 0:02:59.3]} 2. Nf3 {[%clk 0:02:58]} 2...
Nc6 {[%clk 0:02:59.3]} 3. Bb5 {[%clk 0:02:57]} 3... a6 {[%clk 0:02:58.7]} 4. Ba4
{[%clk 0:02:56.7]} 4... Nf6 {[%clk 0:02:58.6]} 5. Bxc6 {[%clk 0:02:56.5]} 5...
dxc6 {[%clk 0:02:57.5]} 6. d3 {[%clk 0:02:55.9]} 6... Bc5 {[%clk 0:02:56.2]} 7.
Nbd2 {[%clk 0:02:51.2]} 7... Ng4 {[%clk 0:02:26.7]} 8. O-O {[%clk 0:02:47.7]}
8... h5 {[%clk 0:02:20.1]} 9. Nc4 {[%clk 0:02:39.1]} 9... Qf6 {[%clk 0:02:11.6]}
10. Be3 {[%clk 0:02:28]} 10... Nxe3 {[%clk 0:02:08.3]} 11. fxe3 {[%clk 0:02:27]}
11... Bg4 {[%clk 0:02:08.1]} 12. Qd2 {[%clk 0:02:20.4]} 12... Bxf3 {[%clk
0:02:04]} 13. Rxf3 {[%clk 0:02:18.4]} 13... Qe6 {[%clk 0:02:03.9]} 14. Qc3
{[%clk 0:02:00.9]} 14... f6 {[%clk 0:01:52.5]} 15. Na5 {[%clk 0:01:48.7]} 15...
Bb6 {[%clk 0:00:35.2]} 16. Nxb7 {[%clk 0:01:44.4]} 16... Rb8 {[%clk 0:00:34.6]}
17. Na5 {[%clk 0:01:25.7]} 17... Bxa5 {[%clk 0:00:33]} 18. Qxa5 {[%clk
0:01:25.6]} 18... Rxb2 {[%clk 0:00:33.1]} 19. Qxa6 {[%clk 0:01:12.4]} 19... O-O
{[%clk 0:00:29.6]} 20. Rf2 {[%clk 0:01:09.3]} 20... Rfb8 {[%clk 0:00:27]} 21. h3
{[%clk 0:01:04.7]} 21... h4 {[%clk 0:00:25.8]} 22. a4 {[%clk 0:00:57.9]} 22...
Kh7 {[%clk 0:00:19.1]} 23. a5 {[%clk 0:00:50.5]} 23... Rb1+ {[%clk 0:00:18.9]}
24. Rxb1 {[%clk 0:00:49.3]} 24... Rxb1+ {[%clk 0:00:19.8]} 25. Rf1 {[%clk
0:00:44.9]} 25... Qa2 {[%clk 0:00:20.1]} 26. Rxb1 {[%clk 0:00:41.4]} 26... Qxb1+
{[%clk 0:00:20]} 27. Kh2 {[%clk 0:00:40.8]} 27... Qe1 {[%clk 0:00:19.9]} 28.
Qxc6 {[%clk 0:00:31.4]} 28... Qg3+ {[%clk 0:00:19.8]} 29. Kg1 {[%clk 0:00:31.3]}
29... Qe1+ {[%clk 0:00:20.1]} 30. Kh2 {[%clk 0:00:31.3]} 30... Qg3+ {[%clk
0:00:20.4]} 31. Kg1 {[%clk 0:00:31.2]} 31... Qe1+ {[%clk 0:00:20.7]} 32. Kh2
{[%clk 0:00:30.7]} 1/2-1/2

[Event "*** Titled Tuesday Blitz"]
[Site "Chess.com"]
[Date "2021.02.16"]
[Round "11"]
[White "kobemagic"]
[Black "verdest"]
[Result "0-1"]
[WhiteElo "2404"]
[BlackElo "2504"]
[TimeControl "180+1"]
[EndTime "12:09:38 PST"]
[Termination "verdest won by resignation"]

1. c4 {[%clk 0:03:00.9]} 1... Nf6 {[%clk 0:02:59.9]} 2. g3 {[%clk 0:03:01.3]}
2... e6 {[%clk 0:03:00.1]} 3. Bg2 {[%clk 0:03:01.7]} 3... d5 {[%clk 0:03:00.6]}
4. Nf3 {[%clk 0:03:02.3]} 4... d4 {[%clk 0:02:59.8]} 5. O-O {[%clk 0:03:01.5]}
5... c5 {[%clk 0:03:00.1]} 6. b4 {[%clk 0:03:00.9]} 6... cxb4 {[%clk 0:02:59.4]}
7. a3 {[%clk 0:03:01.5]} 7... Nc6 {[%clk 0:02:59.5]} 8. d3 {[%clk 0:02:58.2]}
8... a5 {[%clk 0:02:59.1]} 9. Qa4 {[%clk 0:02:48.1]} 9... Bd7 {[%clk 0:02:58]}
10. Bd2 {[%clk 0:02:24.6]} 10... Be7 {[%clk 0:02:55.5]} 11. axb4 {[%clk
0:02:13]} 11... Bxb4 {[%clk 0:02:54.5]} 12. Bxb4 {[%clk 0:02:09.6]} 12... Nxb4
{[%clk 0:02:55.4]} 13. Qb3 {[%clk 0:02:07.3]} 13... Bc6 {[%clk 0:02:51.3]} 14.
Nbd2 {[%clk 0:02:03.7]} 14... O-O {[%clk 0:02:50.2]} 15. Rfb1 {[%clk 0:02:02.6]}
15... h6 {[%clk 0:02:46.4]} 16. Ne1 {[%clk 0:01:43.7]} 16... e5 {[%clk
0:02:42.5]} 17. Nc2 {[%clk 0:01:41.5]} 17... Nxc2 {[%clk 0:02:38.2]} 18. Qxc2
{[%clk 0:01:42.4]} 18... Re8 {[%clk 0:02:34.4]} 19. Bxc6 {[%clk 0:01:27.6]}
19... bxc6 {[%clk 0:02:35.3]} 20. Qa4 {[%clk 0:01:26.3]} 20... Qd6 {[%clk
0:02:30.9]} 21. Rb6 {[%clk 0:01:22.6]} 21... Re6 {[%clk 0:02:29.1]} 22. f3
{[%clk 0:01:17.1]} 22... Nd7 {[%clk 0:02:22.3]} 23. Rb2 {[%clk 0:01:02.6]} 23...
Nc5 {[%clk 0:02:19.6]} 24. Qa3 {[%clk 0:01:03.2]} 24... f5 {[%clk 0:02:18.2]}
25. Nb3 {[%clk 0:00:53.5]} 25... Nxb3 {[%clk 0:02:15.8]} 26. Rxb3 {[%clk
0:00:54]} 26... c5 {[%clk 0:02:12.9]} 27. Qa4 {[%clk 0:00:44.5]} 27... e4 {[%clk
0:02:10]} 28. fxe4 {[%clk 0:00:43.8]} 28... fxe4 {[%clk 0:02:10.1]} 29. Rf1
{[%clk 0:00:37.9]} 29... exd3 {[%clk 0:02:09.2]} 30. exd3 {[%clk 0:00:37.6]}
30... Qe5 {[%clk 0:02:02.4]} 31. Qd7 {[%clk 0:00:30.7]} 31... Qe3+ {[%clk
0:02:01.8]} 32. Kh1 {[%clk 0:00:29.5]} 32... Rae8 {[%clk 0:01:54.7]} 33. Rb7
{[%clk 0:00:25.7]} 33... R8e7 {[%clk 0:01:45.8]} 34. Qc8+ {[%clk 0:00:23.7]}
34... Kh7 {[%clk 0:01:43.2]} 35. Rxe7 {[%clk 0:00:22.9]} 35... Rxe7 {[%clk
0:01:44.1]} 36. Qxc5 {[%clk 0:00:21.7]} 36... Qxd3 {[%clk 0:01:41.9]} 37. Qf5+
{[%clk 0:00:17.8]} 37... Qxf5 {[%clk 0:01:41.7]} 38. Rxf5 {[%clk 0:00:18.7]}
38... Rd7 {[%clk 0:01:39.5]} 39. Kg2 {[%clk 0:00:14.7]} 39... d3 {[%clk
0:01:39.5]} 40. Rf1 {[%clk 0:00:13.9]} 40... Kg6 {[%clk 0:01:38.7]} 41. Ra1
{[%clk 0:00:10.7]} 41... d2 {[%clk 0:01:37.6]} 42. Rd1 {[%clk 0:00:10.7]} 42...
Kf5 {[%clk 0:01:37.7]} 43. Kf3 {[%clk 0:00:11.2]} 43... Rd3+ {[%clk 0:01:34.4]}
44. Ke2 {[%clk 0:00:11]} 44... Ke4 {[%clk 0:01:34.2]} 45. c5 {[%clk 0:00:08.6]}
45... Re3+ {[%clk 0:01:29.9]} 46. Kxd2 {[%clk 0:00:02.7]} 46... Rd3+ {[%clk
0:01:29.8]} 47. Kc2 {[%clk 0:00:03]} 47... Rxd1 {[%clk 0:01:29.9]} 48. Kxd1
{[%clk 0:00:03.9]} 48... Kd5 {[%clk 0:01:29.9]} 0-1

[Event "*** Titled Tuesday Blitz"]
[Site "Chess.com"]
[Date "2021.02.16"]
[Round "11"]
[White "GregShahade"]
[Black "zeitnot2006"]
[Result "1-0"]
[WhiteElo "2665"]
[BlackElo "2526"]
[TimeControl "180+1"]
[EndTime "12:09:39 PST"]
[Termination "GregShahade won by resignation"]

1. e4 {[%clk 0:03:00.9]} 1... c5 {[%clk 0:02:56.4]} 2. Nf3 {[%clk 0:03:01.1]}
2... e6 {[%clk 0:02:56.3]} 3. d4 {[%clk 0:03:01.2]} 3... cxd4 {[%clk 0:02:57.2]}
4. Nxd4 {[%clk 0:03:01.5]} 4... Nc6 {[%clk 0:02:57.7]} 5. Nc3 {[%clk 0:03:01.9]}
5... Qc7 {[%clk 0:02:57.5]} 6. Be3 {[%clk 0:03:01.6]} 6... a6 {[%clk 0:02:57.5]}
7. Qf3 {[%clk 0:03:00.4]} 7... Nf6 {[%clk 0:02:57.5]} 8. O-O-O {[%clk
0:02:58.3]} 8... Ne5 {[%clk 0:02:58.1]} 9. Qg3 {[%clk 0:02:53.2]} 9... b5 {[%clk
0:02:57.8]} 10. a3 {[%clk 0:02:47.9]} 10... Bb7 {[%clk 0:02:56.1]} 11. f3 {[%clk
0:02:47.6]} 11... d6 {[%clk 0:02:42.8]} 12. Kb1 {[%clk 0:02:37.2]} 12... h5
{[%clk 0:02:09.6]} 13. h4 {[%clk 0:02:34.1]} 13... g6 {[%clk 0:01:56.9]} 14. Bg5
{[%clk 0:02:30.7]} 14... Nfd7 {[%clk 0:01:55.3]} 15. Qh3 {[%clk 0:02:03.1]}
15... Be7 {[%clk 0:01:31.4]} 16. Be2 {[%clk 0:01:28.8]} 16... Nc4 {[%clk
0:01:08.6]} 17. Bxc4 {[%clk 0:00:36.6]} 17... Qxc4 {[%clk 0:01:05.5]} 18. Bxe7
{[%clk 0:00:36.6]} 18... Kxe7 {[%clk 0:01:05.4]} 19. Qg3 {[%clk 0:00:37.1]}
19... e5 {[%clk 0:00:34.1]} 20. Nb3 {[%clk 0:00:34.1]} 20... a5 {[%clk
0:00:25.5]} 21. Qg5+ {[%clk 0:00:29.6]} 21... f6 {[%clk 0:00:14.1]} 22. Qxg6
{[%clk 0:00:27.8]} 22... Rhg8 {[%clk 0:00:07.3]} 23. Qh7+ {[%clk 0:00:25.7]}
23... Kd8 {[%clk 0:00:05.2]} 24. Rxd6 {[%clk 0:00:24.9]} 24... Bc6 {[%clk
0:00:01.8]} 25. Rhd1 {[%clk 0:00:24.6]} 25... Kc7 {[%clk 0:00:01.8]} 26. Rxd7+
{[%clk 0:00:23.7]} 26... Bxd7 {[%clk 0:00:02.7]} 27. Qxd7+ {[%clk 0:00:23.8]}
27... Kb6 {[%clk 0:00:03.5]} 1-0